bitfinex-derivatives/quotes_ETHF0:USTF0_20250224
["timestamp","ask_amount","ask_price","bid_price","bid_amount"]
[1740441114833,6.02447,2507.1,2507.0,0.00598038]
[1740441115622,5.2266,2507.1,2507.0,0.00598038]
[1740441116326,0.3966,2506.8,2506.1,1.99547]
[1740441116526,3.2078,2506.7,2506.6,0.79803]
[1740441117327,3.2078,2506.7,2506.6,41.59803]
[1740441119039,0.00598038,2506.9,2506.8,0.79797]
[1740441119528,0.00598038,2506.9,2506.6,44.0078]
[1740441119833,3.2078,2506.7,2506.4,0.80406038]
[1740441120229,3.2078,2506.7,2506.5,40.8]
[1740441120732,4.00581,2506.7,2506.5,40.8]
[1740441120936,3.2078,2506.7,2506.5,40.8]
[1740441123735,0.00598038,2506.9,2506.5,40.8]
[1740441123931,0.00598038,2506.9,2506.8,0.79797]
[1740441124124,3.2078,2507.9,2506.6,8.0358]
[1740441124443,3.2078,2507.9,2507.8,0.79765]
[1740441124835,3.2078,2508.7,2507.8,9.2078]
[1740441125136,13.68477821,2509.0,2508.9,0.7973]
[1740441125639,17.01987494,2509.5,2508.9,3.2078]
[1740441125838,17.01987494,2509.5,2509.4,0.79714]
[1740441126735,14.99858361,2509.5,2509.4,6.79714]
[1740441126935,46.25513542,2510.5,2509.4,6.0]
[1740441127129,24.20323575,2510.5,2510.4,0.79682]
[1740441127331,3.2078,2511.4,2510.2,8.0338]
[1740441127546,3.2078,2511.9,2511.3,3.2078]
[1740441127843,5.8601,2512.2,2511.3,3.2078]
[1740441128037,3.2078,2512.4,2511.8,3.2078]
[1740441128536,3.21378038,2512.4,2512.3,0.79622]
[1740441128736,0.00598038,2512.4,2512.3,0.79622]
[1740441129031,0.00598038,2512.4,2512.3,4.00402]
[1740441129235,0.00598038,2512.4,2512.3,10.00402]
[1740441129437,3.8e-07,2512.4,2512.3,50.80402]
[1740441129640,3.8e-07,2512.4,2512.3,44.0078]
[1740441129845,3.20780038,2512.4,2511.8,0.00598038]
[1740441130140,3.2078,2512.1,2511.8,0.00598038]
[1740441130439,3.8e-07,2512.4,2512.3,0.79622]
[1740441130846,3.8e-07,2512.4,2512.3,6.79622]
[1740441131042,3.8e-07,2512.4,2512.3,47.59622]
[1740441131838,3.8e-07,2512.4,2512.3,6.79622]
[1740441132140,3.8e-07,2512.4,2512.3,10.00402]
[1740441133346,3.2078,2513.0,2512.0,3.2078]
[1740441133547,4.00381,2513.0,2512.3,0.7962]
[1740441134041,3.2078,2513.0,2512.1,1.99072]
[1740441134247,3.2078,2513.0,2512.9,0.79603]
[1740441134747,0.80193038,2513.2,2512.6,0.79611]
[1740441135045,0.80193038,2513.2,2512.3,3.2078]
[1740441135243,0.80193038,2513.2,2512.7,0.79608]
[1740441135443,4.00974038,2513.2,2512.7,0.79608]
[1740441135633,4.00973038,2513.2,2512.1,1.9907]
[1740441135834,3.21378038,2513.2,2512.8,0.79604]
[1740441136039,0.00598038,2513.2,2513.1,0.79597]
[1740441136240,0.00598038,2513.2,2512.2,8.3663926]
[1740441136439,3.21378038,2513.2,2512.2,3.2078]
[1740441136741,3.21378038,2513.2,2512.3,1.99056]
[1740441136948,3.21378038,2513.2,2512.5,3.2078]
[1740441137148,0.00598038,2513.2,2513.1,0.79597]
[1740441138236,0.00598038,2513.2,2513.1,6.79597]
[1740441138442,0.00598038,2513.2,2513.1,10.00377]
[1740441138850,3.2078,2514.0,2513.1,10.00377]
[1740441139150,4.815,2514.8,2514.5,0.79551]
[1740441139349,4.815,2514.8,2514.6,40.8]
[1740441139746,0.7957,2514.0,2513.5,4.00362]
[1740441139954,3.2078,2513.6,2512.8,3.2078]
[1740441140147,4.00361,2513.6,2513.5,0.00596777]
[1740441140452,3.2078,2513.6,2512.5,3.2078]
[1740441140650,3.2078,2513.2,2512.7,0.79608]
[1740441140841,4.00375,2513.2,2512.8,0.79605]
[1740441141046,3.2078,2513.2,2512.9,0.79601]
[1740441141349,3.2078,2513.2,2513.1,0.79597]
[1740441141548,3.2078,2513.8,2512.8,3.53303872]
[1740441141851,3.2078,2514.3,2513.5,3.2078]
[1740441142046,0.79554,2514.5,2513.7,1.98945]
[1740441142251,6.30016,2514.4,2514.1,0.79562]
[1740441142451,9.50796,2514.4,2514.1,0.79562]
[1740441142655,3.2078,2514.4,2514.2,0.79561]
[1740441142851,3.2078,2514.4,2513.8,5.1971]
[1740441143042,3.2078,2514.7,2514.4,1.9889]
[1740441143247,3.2078,2514.7,2514.6,0.79549]
[1740441143947,3.2078,2514.7,2514.3,0.00596777]
[1740441144148,3.2078,2514.4,2514.3,0.00596777]
[1740441144352,3.2078,2514.4,2512.8,3.52757345]
[1740441144551,3.2078,2513.2,2512.6,0.7961]
[1740441144752,0.79612,2512.7,2512.4,0.79618]
[1740441144943,0.79615,2512.6,2512.2,0.79623]
[1740441145148,3.2078,2512.6,2511.9,0.79633]
[1740441145345,3.2078,2512.3,2511.6,3.2078]
[1740441145551,3.2078,2512.3,2511.0,1.99158]
[1740441145552,3.2078,2511.9,2511.0,3.2078]
[1740441145748,4.00425,2511.6,2511.1,41.59658]
[1740441145954,3.2078,2511.3,2511.1,40.8]
[1740441146150,8.0178,2511.3,2510.1,34.39729416]
[1740441146453,3.2078,2510.6,2510.1,0.79689]
[1740441146653,3.2078,2510.6,2510.2,40.8]
[1740441146843,4.81,2510.7,2509.4,4.00492]
[1740441146844,3.2078,2510.3,2509.4,4.00492]
[1740441147043,3.2078,2510.3,2509.0,3.2078]
[1740441147343,3.2078,2509.9,2508.7,3.2078]
[1740441147543,0.79716,2509.4,2508.6,4.00519]
[1740441147746,3.2078,2509.1,2508.3,0.05686508]
[1740441147959,8.81504,2509.1,2508.4,41.59746]
[1740441148247,0.00596777,2509.0,2508.4,41.60340777]
[1740441148449,3.2078,2508.8,2508.4,41.60340777]
[1740441148650,0.00596777,2509.0,2508.4,40.80596777]
[1740441149051,3.2078,2508.8,2508.4,40.80596777]
[1740441149750,0.00596777,2509.0,2508.9,0.7973]
[1740441149954,0.00596777,2509.0,2508.9,6.7973]
[1740441150156,7.77e-06,2509.0,2508.9,6.7973]
[1740441150844,7.77e-06,2509.0,2508.9,11.6093]
[1740441151450,5.8488,2510.3,2510.1,0.79691]
[1740441151849,5.8488,2510.3,2510.2,0.79689]
[1740441152245,3.2078,2510.8,2510.0,1.99239]
[1740441152548,4.5373,2511.4,2510.5,5.19971]
[1740441152549,9.3493,2511.4,2510.5,5.19971]
[1740441152748,3.2078,2511.2,2510.2,3.2078]
[1740441152951,0.00596777,2510.7,2510.0,0.00596777]
[1740441153351,0.00596777,2510.7,2510.6,0.79676]
[1740441153554,0.00596777,2510.7,2510.0,0.00596777]
[1740441153751,0.79696,2510.0,2509.5,3.2078]
[1740441154058,0.79704,2509.8,2509.0,3.2078]
[1740441154257,4.00489,2509.6,2509.2,0.7972]
[1740441154558,0.79708,2509.6,2509.2,0.7972]
[1740441154754,3.2078,2509.7,2508.7,3.2078]
[1740441154961,0.79706,2509.7,2509.2,0.7972]
[1740441155250,3.2078,2509.6,2508.9,0.00596777]
[1740441155452,0.79709,2509.6,2509.1,0.79723]
[1740441155758,4.00488,2509.6,2509.1,0.79722]
[1740441155957,3.2078,2509.6,2508.9,0.00596777]
[1740441156158,4.00489,2509.6,2508.9,0.00596777]
[1740441156455,0.79711,2509.5,2509.0,0.79725]
[1740441156860,0.79862019,2509.5,2509.0,0.79725]
[1740441157358,0.00151019,2509.5,2508.9,0.00596777]
[1740441157565,0.00151019,2509.5,2509.0,0.79724]
[1740441158353,0.00151019,2509.5,2508.9,0.00596777]
[1740441158556,3.2078,2509.3,2508.9,0.00596777]
[1740441159151,3.2078,2509.3,2508.9,0.80326777]
[1740441159956,3.2078,2509.3,2508.9,0.00596777]
[1740441159957,0.79723,2509.2,2508.9,0.00596777]
[1740441160164,0.79721,2509.2,2508.9,0.00596777]
[1740441160761,3.2078,2509.3,2508.9,0.00596777]
[1740441160955,4.00499,2509.3,2508.9,0.00596777]
[1740441161156,3.2078,2509.3,2508.9,0.00596777]
[1740441161663,3.2078,2509.0,2508.8,40.8]
[1740441161859,3.2078,2509.0,2508.5,0.79742]
[1740441162054,3.2078,2509.0,2508.6,0.79739]
[1740441162458,3.2078,2509.0,2508.4,3.2078]
[1740441162459,3.2078,2509.0,2508.9,0.7973]
[1740441162660,3.2078,2509.0,2508.7,0.00596777]
[1740441162959,3.2078,2509.0,2508.9,40.8]
[1740441163361,0.79731,2508.9,2508.7,0.00596777]
[1740441163561,4.00508,2509.0,2508.7,0.00596777]
[1740441165058,3.2078,2509.0,2508.5,40.8]
[1740441165264,0.79744,2508.5,2507.9,0.79761]
[1740441165457,4.812,2508.4,2507.7,3.2078]
[1740441165764,3.2078,2508.3,2507.8,41.59764]
[1740441166162,3.2078,2508.9,2508.1,3.2078]
[1740441166374,3.2078,2508.9,2507.9,1.99405]
[1740441166666,0.00598003,2508.8,2508.7,0.79736]
[1740441166866,0.00598003,2508.8,2508.6,0.79738]
[1740441167567,0.00598003,2508.8,2508.5,0.79741]
[1740441167866,0.00598003,2508.8,2508.2,3.2078]
[1740441167867,0.00598003,2508.8,2508.7,0.79736]
[1740441168260,0.00598003,2508.8,2508.2,3.2078]
[1740441168461,3.2078,2508.6,2507.8,44.01181938]
[1740441168671,3.2078,2508.4,2507.8,44.01181938]
[1740441168965,4.00526,2508.4,2507.9,0.79759]
[1740441169165,3.2078,2508.4,2507.9,0.79759]
[1740441169368,3.2078,2508.4,2507.8,44.01181938]
[1740441169569,4.00527,2508.4,2507.8,44.80944938]
[1740441169869,3.2078,2508.4,2507.8,44.01181938]
[1740441170162,3.2078,2508.2,2507.8,44.01181938]
[1740441170372,8.0198,2508.6,2507.8,44.01181938]
[1740441170566,3.2078,2508.3,2507.8,44.01181938]
[1740441170758,3.2078,2508.3,2507.8,3.21181938]
[1740441170961,3.2078,2507.9,2506.8,3.2078]
[1740441171169,3.2078,2507.5,2506.8,3.53274816]
[1740441171362,3.2078,2507.5,2506.9,40.8]
[1740441171568,4.00556,2507.5,2506.9,41.59792]
[1740441171763,3.2078,2507.5,2506.9,40.8]
[1740441172170,3.2078,2507.2,2506.9,40.8]
[1740441172871,3.6044,2507.2,2506.8,0.79794]
[1740441173274,3.6044,2507.2,2506.8,40.8]
[1740441173470,3.2078,2506.9,2506.2,3.2078]
[1740441173667,3.2078,2506.9,2506.4,0.79808]
[1740441173875,3.2078,2507.2,2506.2,3.54031728]
[1740441174172,0.00598003,2507.5,2507.4,0.79778]
[1740441174173,3.21378003,2507.5,2507.4,0.79778]
[1740441174361,3.21378003,2507.5,2506.6,3.2078]
[1740441174566,3.21378003,2507.5,2506.3,5.07173436]
[1740441174764,3.2078,2507.2,2506.4,40.8]
[1740441174964,3.2078,2507.0,2505.9,3.2078]
[1740441175170,3.2078,2506.5,2506.1,0.79818]
[1740441175375,8.0198,2506.5,2506.0,0.79821]
[1740441175674,8.81787,2506.5,2506.1,40.8]
[1740441175867,8.0198,2506.5,2506.1,40.8]
[1740441176068,8.0198,2506.5,2506.1,41.59819]
[1740441176269,8.0198,2506.5,2503.9,84.25468]
[1740441176270,3.2078,2506.2,2505.0,3.2078]
[1740441176464,3.2078,2505.6,2505.3,0.79842]
[1740441176667,3.2078,2505.6,2505.4,40.8]
[1740441177075,3.2078,2505.6,2505.4,41.59839]
[1740441177374,3.2078,2506.2,2505.5,1.99596]
[1740441177574,9.029,2507.0,2506.2,1.99541]
[1740441177774,3.2078,2507.0,2506.2,1.99541]
[1740441178276,0.7979,2507.0,2506.9,40.8]
[1740441178471,3.2078,2507.0,2506.9,40.8]
[1740441178673,0.3966,2506.9,2506.8,0.79797]
[1740441178873,4.812,2507.3,2506.8,4.00577]
[1740441178874,0.00598003,2507.2,2506.8,4.00577]
[1740441179072,0.00598003,2507.2,2507.1,4.00567]
[1740441179270,3.2078,2508.2,2507.5,1.99431]
[1740441179583,3.2078,2508.2,2508.1,0.79755]
[1740441179875,5.818,2508.7,2507.9,5.20185]
[1740441180076,3.2078,2508.8,2508.0,5.20177]
[1740441180383,3.2078,2508.8,2508.7,0.79736]
[1740441181973,0.00598003,2509.0,2508.9,0.7973]
[1740441182380,0.00598003,2509.0,2508.3,5.20147]
[1740441182676,0.00598003,2509.0,2508.3,3.2078]
[1740441182879,0.00598003,2509.0,2508.9,0.7973]
[1740441183171,0.00598003,2509.0,2508.3,5.20154]
[1740441183376,3.2078,2508.7,2508.1,0.00598003]
[1740441183569,4.811,2508.9,2508.1,0.00598003]
[1740441183570,3.2078,2508.2,2508.1,0.00598003]
[1740441183880,0.79785,2507.2,2506.6,0.79802]
[1740441184173,1.99404,2508.0,2506.1,6.80542]
[1740441184174,0.79799,2506.8,2506.1,0.79816]
[1740441184375,3.2078,2506.8,2505.6,0.31892057]
[1740441184583,3.2078,2506.7,2505.5,13.5289]
[1740441184878,3.2078,2506.8,2505.9,5.20337]
[1740441185072,3.2078,2506.9,2505.9,3.2078]
[1740441185273,3.2078,2506.2,2506.0,0.79821]
[1740441185487,0.00598003,2506.4,2506.1,0.79818]
[1740441185778,0.00598003,2506.4,2505.8,0.00598003]
[1740441185977,0.00598003,2506.4,2506.3,0.79813]
[1740441186173,3.6044,2507.5,2507.4,0.79778]
[1740441186377,0.3966,2507.9,2506.9,3.2078]
[1740441186680,0.3966,2507.9,2507.5,0.79772]
[1740441186981,0.3966,2507.9,2507.6,0.7977]
[1740441187182,4.81,2508.0,2507.6,0.7977]
[1740441187676,3.2078,2507.9,2507.5,0.00598003]
[1740441187875,4.00542,2507.9,2507.5,0.00598003]
[1740441188074,3.2078,2507.6,2506.7,0.79799]
[1740441188273,0.79798,2506.8,2506.2,0.79814]
[1740441188473,3.2078,2506.6,2506.3,0.79812]
[1740441188684,3.2078,2506.6,2506.2,0.79815]
[1740441189183,3.2078,2506.6,2506.3,0.79811]
[1740441189483,0.00598003,2506.7,2506.1,0.00598003]
[1740441189682,0.80399003,2506.7,2506.1,0.80416003]
[1740441189987,0.00598003,2506.7,2506.1,0.00598003]
[1740441190281,5.61298003,2506.7,2506.1,0.80416003]
[1740441190479,0.79816,2506.2,2506.1,0.00598003]
[1740441190676,3.2078,2506.2,2504.7,5.20434]
[1740441190871,1.9953,2506.4,2505.1,3.2078]
[1740441190872,0.79822,2506.0,2505.1,3.2078]
[1740441191079,3.2078,2505.9,2505.2,40.8]
[1740441191277,3.2078,2505.9,2505.5,3.2078]
[1740441191479,3.2078,2505.9,2505.7,0.79831]
[1740441191676,4.809,2506.1,2505.3,0.79845]
[1740441191882,4.809,2506.1,2505.8,0.79827]
[1740441192179,4.809,2506.1,2505.9,0.79823]
[1740441192378,4.809,2506.1,2505.3,3.2078]
[1740441192684,0.79837,2505.6,2505.0,0.79853]
[1740441192885,3.2078,2505.4,2504.7,3.2078]
[1740441193082,3.2078,2505.4,2504.9,0.79855]
[1740441193281,0.00598003,2505.3,2504.9,0.79855]
[1740441193480,0.00598003,2505.3,2504.7,3.2078]
[1740441193949,0.00598003,2505.3,2505.2,0.79848]
[1740441194084,0.00598003,2505.3,2504.3,10.1332]
[1740441194085,0.00598003,2505.3,2504.4,3.2078]
[1740441194274,0.00598003,2505.3,2505.1,0.79849]
[1740441194780,0.00598003,2505.3,2505.2,0.79848]
[1740441194987,7.5906,2506.2,2505.2,0.79848]
[1740441194988,3.2078,2506.2,2505.8,0.79828]
[1740441195480,3.2078,2506.2,2505.2,40.8]
[1740441195481,3.2078,2506.2,2506.1,0.79819]
[1740441195783,3.2078,2507.1,2505.9,3.2078]
[1740441196084,0.00598003,2506.8,2506.7,0.798]
[1740441196280,4.81,2507.4,2506.5,44.0078]
[1740441196281,4.81,2507.4,2507.3,0.79781]
[1740441196481,8.0168,2507.8,2507.0,3.2078]
[1740441196691,0.7977,2507.7,2507.2,0.79783]
[1740441196889,3.2078,2507.5,2507.1,0.79786]
[1740441197186,3.2078,2507.5,2507.1,0.79787]
[1740441197387,3.2078,2507.5,2506.6,3.2078]
[1740441197585,3.2078,2507.5,2507.0,0.79788]
[1740441198281,3.2078,2507.5,2507.2,0.79784]
[1740441198483,3.2078,2507.5,2507.1,0.79786]
[1740441198787,0.80371003,2507.6,2507.1,0.79786]
[1740441199182,0.79775,2507.5,2507.0,0.79789]
[1740441199391,3.2078,2507.4,2507.0,0.79789]
[1740441199688,3.2078,2507.5,2507.1,0.79786]
[1740441199889,0.00598003,2507.6,2506.9,3.2078]
[1740441200189,3.2078,2508.8,2508.7,0.79736]
[1740441200387,9.1929,2509.3,2508.2,3.2078]
[1740441200687,3.2078,2509.3,2509.1,0.79722]
[1740441200886,3.2078,2509.3,2509.2,0.79721]
[1740441201285,3.2078,2509.3,2509.1,0.79722]
[1740441201490,3.2078,2509.3,2509.2,0.79721]
[1740441201792,0.00749022,2509.5,2509.4,0.79714]
[1740441202887,3.2078,2509.9,2509.8,0.79701]
[1740441203083,3.2078,2510.4,2510.1,0.7969]
[1740441203288,3.2078,2510.4,2509.6,1.99263]
[1740441203485,3.2078,2510.4,2510.1,0.7969]
[1740441203689,3.2078,2510.4,2510.3,0.79686]
[1740441204388,0.00598003,2510.6,2510.1,0.00598003]
[1740441204695,0.00598003,2510.6,2510.5,0.79679]
[1740441205690,3.2078,2511.3,2510.9,0.79665]
[1740441205881,3.2078,2511.3,2510.6,3.2078]
[1740441206086,3.2078,2511.7,2511.5,0.79646]
[1740441206286,3.2078,2511.7,2511.6,0.79644]
[1740441206488,3.2078,2511.7,2511.1,40.8]
[1740441206891,3.2078,2511.7,2511.6,0.79644]
[1740441207088,3.21378003,2511.7,2511.3,3.2078]
[1740441207298,3.21378003,2511.7,2511.1,40.80598003]
[1740441207493,3.21378003,2511.7,2511.1,0.00598003]
[1740441207994,3.21378003,2511.7,2511.6,0.79644]
[1740441208182,3.21378003,2511.7,2511.2,0.79657]
[1740441208385,3.2078,2511.4,2511.1,0.00598003]
[1740441209687,0.00598003,2511.7,2511.2,3.2078]
[1740441209890,0.00598003,2511.7,2511.6,0.79644]
[1740441211193,0.00598003,2511.7,2511.1,0.00598003]
[1740441211397,3.2078,2511.4,2511.1,0.00598003]
[1740441211590,3.2078,2511.4,2510.2,3.2078]
[1740441211891,4.801,2511.6,2509.6,8.8671]
[1740441211892,3.2078,2510.6,2509.6,8.8671]
[1740441212100,3.2078,2510.6,2509.4,1.9928]
[1740441212101,4.00464,2510.4,2509.4,1.9928]
[1740441212299,3.2078,2510.1,2509.4,1.99286]
[1740441212496,3.2078,2510.1,2509.3,3.2078]
[1740441212801,3.2078,2510.1,2509.1,1.99304]
[1740441212802,3.2078,2510.4,2509.6,3.2078]
[1740441213093,0.00598003,2510.0,2509.9,0.79698]
[1740441213293,0.00598003,2510.0,2509.9,4.00478]
[1740441213485,3e-08,2510.0,2509.9,10.00478]
[1740441213689,3.2078,2510.7,2510.6,0.79676]
[1740441213892,0.3995,2511.5,2511.4,0.79651]
[1740441214094,0.3995,2511.5,2511.4,4.00431]
[1740441214291,0.3995,2511.5,2511.4,0.79651]
[1740441214692,0.3995,2512.1,2511.3,1.99132]
[1740441214894,0.00598003,2511.7,2511.6,0.79644]
[1740441215096,3.61328003,2511.7,2511.4,40.8]
[1740441215293,3.61328003,2511.7,2511.2,0.00598003]
[1740441215498,3.2078,2511.3,2511.2,0.00598003]
[1740441215699,4.00434,2511.3,2511.2,0.00598003]
[1740441216094,9.2078,2511.3,2510.3,25.3098]
[1740441216297,4.00436,2511.3,2510.3,5.19992]
[1740441216603,0.00598003,2511.7,2511.6,0.79644]
[1740441216896,3.97949,2513.4,2511.1,5.1993]
[1740441216897,3.2078,2512.4,2512.3,0.79622]
[1740441217097,5.5811,2512.9,2512.5,0.79615]
[1740441217291,3.2078,2513.0,2512.5,40.8]
[1740441217999,3.2078,2513.0,2512.9,0.79603]
[1740441218295,3.21378003,2513.0,2512.8,0.79604]
[1740441218596,3.21378003,2513.0,2512.7,0.79608]
[1740441218798,3.21378003,2513.0,2512.8,0.79606]
[1740441219004,3.21378003,2513.0,2512.9,0.79603]
[1740441219203,3.21378003,2513.0,2512.8,0.79605]
[1740441219501,3.21378003,2513.0,2512.7,0.79607]
[1740441219698,3.21378003,2513.0,2512.5,40.80598003]
[1740441220503,3.21378003,2513.0,2512.8,0.79605]
[1740441220800,3e-08,2513.0,2512.9,4.00383]
[1740441221193,3e-08,2513.0,2512.9,10.00383]
[1740441221798,3e-08,2513.0,2512.9,50.80383]
[1740441223104,3.2078,2514.8,2514.4,0.79554]
[1740441223292,0.79548,2514.7,2514.4,0.79554]
[1740441223601,4.793,2515.4,2514.9,0.79537]
[1740441223803,4.793,2515.4,2514.5,3.2078]
[1740441224004,0.79529,2515.3,2514.5,3.2078]
[1740441224501,0.00394383,2515.2,2514.8,3.2078]
[1740441224801,0.00394383,2515.2,2515.1,0.79534]
[1740441225098,0.00394383,2515.2,2515.1,4.00314]
[1740441225311,3.2078,2515.8,2515.1,9.2078]
[1740441225492,3.2078,2515.8,2515.7,0.79515]
[1740441225695,3.2078,2516.1,2515.7,40.8]
[1740441225892,3.2078,2516.1,2515.9,0.79506]
[1740441226105,3.2078,2516.1,2515.7,44.0078]
[1740441226306,3.2078,2516.1,2515.7,40.8]
[1740441226602,3.2078,2516.1,2515.8,0.7951]
[1740441227106,3.2078,2516.1,2515.7,41.59513]
[1740441227402,3.2078,2516.1,2515.4,3.2078]
[1740441227597,3.2078,2516.1,2515.7,0.79514]
[1740441227796,4.00282,2516.1,2515.6,0.79516]
[1740441228300,3.2078,2516.1,2515.6,0.79516]
[1740441228503,3.2078,2516.1,2515.4,3.2078]
[1740441228798,3.2078,2516.1,2515.6,0.79515]
[1740441229004,3.2078,2516.1,2515.4,3.2078]
[1740441229205,3.2078,2516.1,2515.8,0.7951]
[1740441229408,3.2078,2516.1,2516.0,0.79505]
[1740441229603,7.9056,2516.9,2515.7,3.2078]
[1740441229902,7.9056,2516.9,2515.9,1.98771]
[1740441230110,7.9056,2516.9,2516.0,1.99359718]
[1740441230309,7.9056,2516.9,2516.4,0.79491]
[1740441230511,0.79482,2516.8,2516.1,0.79502]
[1740441230709,7.9056,2516.9,2516.0,0.00596718]
[1740441230915,3.2078,2516.2,2516.0,0.00596718]
[1740441231105,9.2078,2516.2,2514.8,3.2078]
[1740441231408,3.2078,2516.2,2515.1,3.2078]
[1740441231709,0.79508,2515.9,2515.3,0.79527]
[1740441232009,3.2078,2516.1,2515.4,3.2078]
[1740441232312,3.21376718,2515.9,2515.4,0.79522]
[1740441232609,3.21376718,2515.9,2515.5,0.7952]
[1740441233010,3.21376718,2515.9,2515.3,0.00596718]
[1740441233406,4.00886718,2515.9,2515.3,0.00596718]
[1740441233610,3.21376718,2515.9,2515.3,0.00596718]
[1740441233808,0.79523,2515.5,2515.3,0.00596718]
[1740441234020,7.9938,2515.6,2515.3,0.00596718]
[1740441234218,4.00302,2515.5,2515.3,0.00596718]
[1740441234419,3.2078,2515.6,2515.3,0.00596718]
[1740441234615,0.00596718,2515.9,2515.8,0.79511]
[1740441234813,3.2078,2516.6,2516.3,0.79494]
[1740441235009,0.79469,2517.2,2516.4,0.79492]
[1740441235209,3.2078,2517.3,2516.4,41.59492]
[1740441235414,3.2078,2516.7,2516.4,41.59492]
[1740441235619,3.2078,2517.3,2516.4,44.80272]
[1740441235813,3.2078,2517.0,2516.4,44.80272]
[1740441236019,3.2078,2517.2,2516.4,50.80272]
[1740441236217,4.784,2517.6,2517.2,0.79466]
[1740441236412,3.2078,2517.5,2517.2,0.79466]
[1740441236608,3.2078,2517.5,2516.8,3.2078]
[1740441236921,3.2078,2517.5,2517.1,0.80065718]
[1740441237217,2.957,2520.2,2517.4,3.2078]
[1740441237218,3.2078,2518.8,2517.4,3.2078]
[1740441237423,3.2078,2518.8,2517.7,3.2078]
[1740441237716,3.2078,2517.8,2516.8,3.2078]
[1740441238019,3.2078,2517.4,2516.1,3.2078]
[1740441238215,0.7947,2517.1,2517.0,0.00595522]
[1740441238409,5.1946,2517.1,2516.1,3.2078]
[1740441238614,3.2078,2516.3,2515.4,3.2078]
[1740441238815,0.795,2516.2,2515.6,0.79516]
[1740441239119,3.2078,2516.0,2515.6,0.79516]
[1740441239316,3.2078,2516.0,2515.4,3.2078]
[1740441239510,3.69777534,2538.4,2514.7,32.3218]
[1740441239511,3.2078,2517.2,2515.7,3.2078]
[1740441239718,4.781,2517.1,2515.8,1.98779]
[1740441239916,5.35e-06,2516.0,2515.9,0.79508]
[1740441240122,5.35e-06,2516.0,2515.9,4.00288]
[1740441240322,5.35e-06,2516.0,2515.9,14.78388]
[1740441240722,5.35e-06,2516.0,2515.9,4.00288]
[1740441240917,5.35e-06,2516.0,2515.9,3.2078]
[1740441241820,5.35e-06,2516.0,2515.9,4.00288]
[1740441242027,5.35e-06,2516.0,2515.9,10.00288]
[1740441242226,5.35e-06,2516.0,2515.9,15.17929595]
[1740441242426,5.35e-06,2516.0,2515.9,55.97929595]
[1740441242625,5.35e-06,2516.0,2515.9,44.80288]
[1740441243125,0.79511,2515.9,2515.4,0.80116522]
[1740441243420,0.79513,2515.8,2515.4,0.80118522]
[1740441243620,3.2078,2515.9,2515.4,0.00595522]
[1740441244025,3.2078,2515.6,2515.5,0.79521]
[1740441244225,5.35e-06,2516.0,2515.4,0.00595522]
[1740441244518,0.7949,2516.5,2516.1,0.79501]
[1740441244724,3.2078,2516.6,2516.0,0.79503]
[1740441244917,3.2078,2516.6,2515.7,3.2078]
[1740441245324,0.79494,2516.4,2515.9,0.79506]
[1740441245528,4.00277,2516.3,2516.0,40.8]
[1740441245729,3.2078,2516.3,2516.0,40.8]
[1740441246632,3.2078,2516.9,2516.0,40.8]
[1740441246819,8.9075,2517.2,2516.3,3.2078]
[1740441247131,8.9075,2517.2,2516.6,3.2078]
[1740441247428,9.70218,2517.2,2516.6,0.79484]
[1740441247628,8.9075,2517.2,2516.4,3.2078]
[1740441247829,10.3588,2517.7,2517.0,3.2078]
[1740441248024,3.2078,2517.5,2516.7,3.2078]
[1740441248224,0.79461,2517.4,2516.8,0.79479]
[1740441248525,4.00247,2517.2,2517.1,0.00595522]
[1740441249029,3.2078,2517.2,2516.2,7.9868]
[1740441249231,4.00248,2517.2,2516.6,0.79486]
[1740441249432,0.79472,2517.1,2516.5,0.79489]
[1740441249626,3.2078,2516.9,2516.2,7.9868]
[1740441249924,3.2078,2516.9,2516.1,22.049]
[1740441250129,3.2078,2516.6,2516.2,0.79499]
[1740441250332,3.2078,2516.6,2516.2,0.00595522]
[1740441250829,0.00595522,2516.8,2516.7,0.79483]
[1740441251024,0.00595522,2516.8,2516.7,4.00263]
[1740441251222,5.22e-06,2516.8,2516.7,50.80263]
[1740441252034,5.22e-06,2516.8,2516.7,44.80263]
[1740441252526,5.22e-06,2516.8,2516.6,22.045]
[1740441252727,3.2078,2516.7,2516.2,0.00595522]
[1740441252932,5.22e-06,2516.8,2516.2,0.00595522]
[1740441252933,3.2078,2516.5,2516.2,0.00595522]
[1740441253331,0.79495,2516.4,2516.2,0.00595522]
[1740441253531,4.00272,2516.5,2516.2,0.00595522]
[1740441253735,3.2078,2516.5,2516.2,0.00595522]
[1740441254031,0.79496,2516.3,2516.2,0.00595522]
[1740441254834,3.2078,2517.1,2516.7,0.79483]
[1740441255031,3.2078,2517.4,2516.6,1.98715]
[1740441255328,3.2078,2517.4,2516.4,5.19507]
[1740441255329,3.2078,2517.4,2516.9,0.79475]
[1740441255531,3.2078,2517.1,2516.4,3.2078]
[1740441255931,0.79485,2516.7,2516.2,40.80595522]
[1740441256133,4.00262,2516.8,2516.3,0.79496]
[1740441256529,3.2078,2516.5,2516.2,41.60092522]
[1740441257129,3.2078,2517.1,2516.4,0.79492]
[1740441257931,3.2078,2517.4,2516.9,0.79474]
[1740441258126,4.00242,2517.4,2516.9,0.79474]
[1740441258532,0.79468,2517.2,2516.7,0.79482]
[1740441258736,3.2078,2517.1,2516.7,0.79482]
[1740441259034,3.2078,2516.8,2516.4,0.79491]
[1740441260036,3.2078,2516.8,2516.3,0.79494]
[1740441260232,3.2078,2516.8,2516.2,40.80595522]
[1740441260637,0.79483,2516.7,2516.2,41.60092522]
[1740441260842,0.79496,2516.3,2516.2,0.00595522]
[1740441261140,4.775,2516.3,2515.6,3.2078]